{"text_format":"1","workbook":"xlsx","n_sheets":6,"sheets":["Leeme ","Un licitador"," Dos Licitadores","Tres Licitadores ","4 a 18 Licitadores  ","Regulación"],"not_rendered":{"charts":0,"images":0,"macros":1,"external_links":0,"defined_names":1,"comments":0,"pivot_tables":0},"unopened":[],"bounds":{"document_bytes":16777216,"sheet_cells":100000,"rows_first":2000,"rows_last":500,"rows_between":2000,"halvings":0,"cell_chars":16384,"cell_head_chars":4096},"cells_cut":0,"cells_raw":0,"read":"whole","date_system":"1900"}

{"sheet":"Leeme ","index":0,"n_rows":23,"n_cols":1,"rows_kept":23,"cut":false,"hidden":false,"merged":[[8,0,9,9],[20,0,20,8]]}
[]
["Para Personalizar el Ayuntamiento o Entidad, debemos situar el ratón encima del Cuadro "]
[]
[]
[]
[]
[]
[]
["luego, con el botón derecho del ratón, se abre una lista con una serie de opciones, debemos de elegir Modificar texto y añadir el nombre deseado."]
[]
[]
["Luego deben introducirse los datos relativos al contrato y precio base de licitación "]
["posteriormente se rellenarían los datos relativos a los contratistas ofertantes e importe."]
["Hecho esto, se ordenarían las ofertas en sentido creciente. A tal efecto se pulsaría el botón gris"]
[]
[]
[]
[]
[]
[]
[]
["manuel.fueyo@cogersa.es"]
["Tfno.: 985208340"]

{"sheet":"Un licitador","index":1,"n_rows":15,"n_cols":5,"rows_kept":15,"cut":false,"hidden":false,"merged":[[10,1,10,4]]}
[]
[]
[]
[]
[]
[]
[]
[]
[]
[]
[null,"Edificio de Oficinas y Laboratorio"]
[null,6000000]
[]
["OFERTA PRESENTADA","Importe","Baja","Porcentaje de Baja","¿Es Baja Temeraria?"]
["Construcciones Alcuba SA",4500000,{"$f":"+B12-B15","v":1500000},{"$f":"+C15/B12","v":0.25},{"$f":"IF(D15>25/100,\"Es Baja Temeraria\",\"No es Baja Temeraria\")","v":"No es Baja Temeraria"}]

{"sheet":" Dos Licitadores","index":2,"n_rows":20,"n_cols":5,"rows_kept":20,"cut":false,"hidden":false,"merged":[[16,0,16,2],[9,1,9,4]]}
[]
[]
[]
[]
[]
[]
[]
[]
[]
[null,"REPARACIÓN DE DESPERFECTOS EN EL PISO DEL SALON DE ACTOS Y SU PLANTA BAJA DEL ATENEO OBRERO DE VILLAVICIOSA"]
[null,162192.59]
[]
["OFERTAS PRESENTADAS","Importe Oferta","Importe de la Baja","Porcentaje de Baja sobre precio base licitación","¿Baja Temeraria?"]
["INGENIEROS, CONSTRUCCIONES Y NAVES S.L.",119000,{"$f":"+$B$11-B14","v":43192.59},{"$f":"+C14/$B$11","v":0.26630433609821508},{"$f":"IF(B14<B15*0.8,\"Es Baja Temeraria\",\"No es Baja Temeraria\")","v":"No es Baja Temeraria"}]
["BIENES Y OBRAS DEL PRINCIPADO S.A.",119750,{"$f":"+$B$11-B15","v":42442.59},{"$f":"+C15/$B$11","v":0.26168020376269963},{"$f":"IF(B15<B14*0.8,\"Es Baja Temeraria\",\"No es Baja Temeraria\")","v":"No es Baja Temeraria"}]
[]
[]
[]
[]
["(*) Una vez que se hayan introducido los datos, lo primero que se debe hacer es pulsar el botón gris para ordenar las ofertas por orden creciente"]

{"sheet":"Tres Licitadores ","index":3,"n_rows":23,"n_cols":7,"rows_kept":23,"cut":false,"hidden":false,"merged":[[18,0,18,2],[10,1,10,6]]}
[]
[]
[]
[]
[]
[]
[]
[]
[]
[]
[]
[null,405500]
[]
["OFERTAS PRESENTADAS","Importe Oferta","Importe de la Baja","Porcentaje de Baja sobre precio base licitación","Primer Filtro (>10 unds. a la media)","Segundo Filtro de Baja Temeraria (< 10 uds a la media de las ofertas)","Tercer Filtro de Baja Temeraria (Baja superior a 25 uds.)"]
["La Talaverana SL",288347.93,{"$f":"+$B$12-B15","v":117152.07},{"$f":"+C15/$B$12","v":0.28890769420468559},{"$f":"IF(B15>$B$18*1.1,\"No se incluye\",\"Se incluye\")","v":"Se incluye"},{"$f":"IF(B15<$E$19,\"Es Baja Temeraria\",\"No es Baja Temeraria\")","v":"No es Baja Temeraria"},{"$f":"IF(D15>25%,\"Es Baja Desproporcionada\",\"No es Baja Desproporcionada\")","v":"Es Baja Desproporcionada"}]
["Construcciones Talavera de la Reina SL",305427.24,{"$f":"+$B$12-B16","v":100072.76000000001},{"$f":"+C16/$B$12","v":0.24678855733662147},{"$f":"IF(B16>$B$18*1.1,\"No se incluye\",\"Se incluye\")","v":"Se incluye"},{"$f":"IF(B16<$E$19,\"Es Baja Temeraria\",\"No es Baja Temeraria\")","v":"No es Baja Temeraria"},{"$f":"IF(D16>25%,\"Es Baja Desproporcionada\",\"No es Baja Desproporcionada\")","v":"No es Baja Desproporcionada"}]
["Construcciones Godoy SA",403308.13,{"$f":"+$B$12-B17","v":2191.8699999999953},{"$f":"+C17/$B$12","v":5.4053514180024548E-3},{"$f":"IF(B17>$B$18*1.1,\"No se incluye\",\"Se incluye\")","v":"No se incluye"},{"$f":"IF(B17<$E$19,\"Es Baja Temeraria\",\"No es Baja Temeraria\")","v":"No es Baja Temeraria"},{"$f":"IF(D17>25%,\"Es Baja Desproporcionada\",\"No es Baja Desproporcionada\")","v":"No es Baja Desproporcionada"}]
["Media de las Ofertas Presentadas incluidas",{"$f":"AVERAGE(B15:B17)","v":332361.09999999998},{"$f":"AVERAGE(C15:C17)","v":73138.900000000009},{"$f":"AVERAGE(D15:D17)","v":0.18036720098643652},{"$f":"SUMIF(E15:E17,\"Se incluye\",B15:B17)/COUNTIF(E15:E17,\"Se incluye\")","v":296887.58499999996}]
["Media Aritmética menos 10 unidades porcentuales",null,null,{"$f":"1-E19/B12","v":0.34106331319358829},{"$f":"+E18*0.9","v":267198.82649999997}]
[]
[]
[]
["(*) Una vez que se hayan introducido los datos lo primero que se debe hacer es pulsar el botón gris para ordenar las ofertas por orden creciente"]

{"sheet":"4 a 18 Licitadores  ","index":4,"n_rows":38,"n_cols":7,"rows_kept":38,"cut":false,"hidden":false,"merged":[[32,0,32,2],[10,1,10,6],[37,2,37,3]]}
[]
[]
[]
[]
[]
[]
[]
[]
[]
[]
[null,"Denominación"]
[null,0]
[]
["OFERTAS PRESENTADAS","Importe Oferta","Importe de la Baja","Porcentaje de Baja sobre precio base licitación","Primer Filtro ","¿Baja Temeraria?","Supuesto especial nº ofertas a considerar menor a 3"]
["Licitador 1",0,{"$f":"IF(B15>0,$B$12-B15,\"\")","v":""},{"$f":"IF(B15>0,C15/$B$12,\"\")","v":""},{"$f":"IF(B15>0,(IF(B15>$B$32*1.1,\"No se incluye\",\"Se incluye\")),\"\")","v":""},{"$f":"IF(B15<$E$33,\"Es Baja Temeraria\",\"No es Baja Temeraria\")","v":{"$error":"#DIV/0!"}},{"$f":"IF(B15>0,IF($F$38<3,IF(B15<$E$38,\"Es Baja Temeraria\",\"No es Baja Temeraria\"),\"\"),\"\")","v":""}]
["Licitador 2",0,{"$f":"IF(B16>0,$B$12-B16,\"\")","v":""},{"$f":"IF(B16>0,C16/$B$12,\"\")","v":""},{"$f":"IF(B16>0,(IF(B16>$B$32*1.1,\"No se incluye\",\"Se incluye\")),\"\")","v":""},{"$f":"IF(B16>0,(IF(B16<$E$33,\"Es Baja Temeraria\",\"No es Baja Temeraria\")),\"\")","v":""},{"$f":"IF(B16>0,IF($F$38<3,IF(B16<$E$38,\"Es Baja Temeraria\",\"No es Baja Temeraria\"),\"\"),\"\")","v":""}]
["Licitador 3",0,{"$f":"IF(B17>0,$B$12-B17,\"\")","v":""},{"$f":"IF(B17>0,C17/$B$12,\"\")","v":""},{"$f":"IF(B17>0,(IF(B17>$B$32*1.1,\"No se incluye\",\"Se incluye\")),\"\")","v":""},{"$f":"IF(B17<$E$33,\"Es Baja Temeraria\",\"No es Baja Temeraria\")","v":{"$error":"#DIV/0!"}},""]
["Licitador 4",0,{"$f":"IF(B18>0,$B$12-B18,\"\")","v":""},{"$f":"IF(B18>0,C18/$B$12,\"\")","v":""},{"$f":"IF(B18>0,(IF(B18>$B$32*1.1,\"No se incluye\",\"Se incluye\")),\"\")","v":""},{"$f":"IF(B18<$E$33,\"Es Baja Temeraria\",\"No es Baja Temeraria\")","v":{"$error":"#DIV/0!"}},""]
[null,null,{"$f":"IF(B19>0,$B$12-B19,\"\")","v":""},{"$f":"IF(B19>0,C19/$B$12,\"\")","v":""},{"$f":"IF(B19>0,(IF(B19>$B$32*1.1,\"No se incluye\",\"Se incluye\")),\"\")","v":""},{"$f":"IF(B19>0,(IF(B19<$E$33,\"Es Baja Temeraria\",\"No es Baja Temeraria\")),\"\")","v":""},""]
[null,null,"","","","",""]
[null,null,"","","","",""]
[null,null,"","","","",""]
[null,null,"","","","",""]
[null,null,"","","","",""]
[null,null,"","","","",""]
[null,null,"","","","",""]
[null,null,"","","","",""]
[null,null,"","","","",""]
[null,null,"","","","",""]
[null,null,"","","","",""]
[null,null,"","","","",""]
["Medias calculadas",{"$f":"AVERAGE(B15:B31)","v":0},{"$f":"AVERAGE(C15:C31)","v":{"$error":"#DIV/0!"}},{"$f":"SUMIF(E15:E31,\"Se incluye\",D15:D31)/COUNTIF(E15:E31,\"Se incluye\")","v":{"$error":"#DIV/0!"}},{"$f":"SUMIF(E15:E31,\"Se incluye\",B15:B31)/COUNTIF(E15:E31,\"Se incluye\")","v":{"$error":"#DIV/0!"}},"Media Ofertas incluidas"]
["Porcentaje de Baja a partir del cual se considera BAJA TEMERARIA e importe de la oferta, en valores absolutos, a partir del cual tiene esa consIderación (Media Aritmética Ofertas incluídas menos 10 unidades porcentuales)",null,null,{"$f":"1-E33/B12","v":{"$error":"#DIV/0!"}},{"$f":"+E32*0.9","v":{"$error":"#DIV/0!"}}]
[]
[]
["(*) Una vez que se hayan introducido los datos lo primero que se debe hacer es pulsar el botón gris -celda A14- para ordenar las ofertas por orden creciente"]
["Si, como consecunecia del proceso de exclusión, el número de ofertas a considerar fuese inferior a 3, la nueva media se calculará sobre las tres ofertas de menor cuantía."]
["PROMEDIO DE LAS TRES INFERIORES",{"$f":"AVERAGE(B15:B17)","v":0},"TEMERIDAD MENOR A ",null,{"$f":"+B38*0.9","v":0},{"$f":"COUNTIF(E15:E31,\"Se incluye\")","v":0}]

{"sheet":"Regulación","index":5,"n_rows":15,"n_cols":2,"rows_kept":15,"cut":false,"hidden":false,"merged":[[0,0,0,1]]}
["Real Decreto 1098/2001, de 12 de octubre, por el que se aprueba el Reglamento general de la Ley de Contratos de las Administraciones Públicas. (BOE 26/10/2001) (Corrección de errores B.O.E. 19/12/2001 y B.O.E. de 08/02/2002))\n"]
[null,"Artículo 85. Criterios para apreciar las ofertas desproporcionadas o temerarias en las subastas."]
[null,"Se considerarán, en principio, desproporcionadas o temerarias las ofertas que se encuentren en los siguientes supuestos:"]
[null,"1. Cuando, concurriendo un solo licitador, sea inferior al presupuesto base de licitación en más de 25 unidades porcentuales."]
[null,"2. Cuando concurran dos licitadores, la que sea inferior en más de 20 unidades porcentuales a la otra oferta."]
[null,"3. Cuando concurran tres licitadores, las que sean inferiores en más de 10 unidades porcentuales a la media aritmética de las ofertas presentadas. No obstante, se excluirá para el cómputo de dicha media la oferta de cuantía más elevada cuando sea superior en más de 10 unidades porcentuales a dicha media. En cualquier caso, se considerará desproporcionada la baja superior a 25 unidades porcentuales."]
[null,"4. Cuando concurran cuatro o más licitadores, las que sean inferiores en más de 10 unidades porcentuales a la media aritmética de las ofertas presentadas. No obstante, si entre ellas existen ofertas que sean superiores a dicha media en más de 10 unidades porcentuales, se procederá al cálculo de una nueva media sólo con las ofertas que no se encuentren en el supuesto indicado. En todo caso, si el número de las restantes ofertas es inferior a tres, la nueva media se calculará sobre las tres ofertas de menor cuantía."]
[null,"5. Excepcionalmente, y atendiendo al objeto del contrato y circunstancias del mercado, el órgano de contratación podrá motivadamente reducir en un tercio en el correspondiente pliego de cláusulas administrativas particulares los porcentajes establecidos en los apartados anteriores."]
[null,"6. Para la valoración de la ofertas como desproporcionadas, la mesa de contratación podrá considerar la relación entre la solvencia de la empresa y la oferta presentada."]
[]
[null,"Artículo 86. Valoración de las proposiciones formuladas por distintas empresas pertenecientes a un mismo grupo."]
[null,"1. A los efectos de lo dispuesto en el artículo 83.3 de la Ley, cuando empresas pertenecientes a un mismo grupo, entendiéndose por tales las que se encuentren en alguno de los supuestos del artículo 42.1 del Código de Comercio, presenten distintas proposiciones para concurrir individualmente a la adjudicación de un contrato, se tomará únicamente, para aplicar el régimen de apreciación de ofertas desproporcionadas o temerarias, la oferta mas baja, produciéndose la aplicación de los efectos derivados del procedimiento establecido para la apreciación de ofertas desproporcionadas o temerarias, respecto de las restantes ofertas formuladas por las empresas del grupo."]
[null,"2. Cuando se presenten distintas proposiciones por sociedades en las que concurran alguno de los supuestos alternativos establecidos en el artículo 42.1 del Código de Comercio, respecto de los socios que las integran, se aplicarán respecto de la valoración de la oferta económica las mismas reglas establecidas en el apartado anterior."]
[null,"3. A los efectos de lo dispuesto en los dos apartados anteriores, las empresas del mismo grupo que concurran a una misma licitación deberán presentar declaración sobre los extremos en los mismos reseñados."]
[null,"4. A los efectos de lo dispuesto en el artículo 86.4 de la Ley, los pliegos de cláusulas administrativas particulares podrán establecer el criterio o criterios para la valoración de las proposiciones formuladas por empresas pertenecientes a un mismo grupo."]